bitfinex/quotes_ETHUSD_20250520
["timestamp","ask_amount","ask_price","bid_price","bid_amount"]
[1747769413767,4.03228409,2480.0,2479.8,21.352]
[1747769414005,4.0321659,2480.1,2479.8,21.73452255]
[1747769414301,4.03228111,2480.0,2479.8,21.73452255]
[1747769414466,4.03181859,2480.3,2479.8,21.73452255]
[1747769414817,4.03135401,2480.6,2479.9,4.85483715]
[1747769414818,0.7819,2480.6,2479.9,4.85483715]
[1747769415015,0.7819,2480.6,2479.9,5.19702975]
[1747769415168,4.81326393,2480.6,2479.9,5.19702975]
[1747769415363,4.03136393,2480.6,2480.0,4.03224019]
[1747769415590,4.03136393,2480.6,2480.1,26.1911]
[1747769416412,4.03136393,2480.6,2480.2,0.38252255]
[1747769416709,4.03136393,2480.6,2480.3,12.283]
[1747769416911,4.03136393,2480.6,2480.4,21.35]
[1747769417331,4.03102634,2480.8,2480.4,21.35]
[1747769417484,4.03112713,2480.7,2480.4,21.35]
[1747769418318,0.7819,2481.3,2480.5,0.7821]
[1747769418620,4.03057162,2481.1,2480.6,0.04030741]
[1747769418827,4.03056964,2481.1,2480.7,0.7821]
[1747769418986,4.03076897,2481.0,2480.8,21.348]
[1747769419625,4.03076897,2481.0,2480.9,21.348]
[1747769421119,4.03076897,2481.0,2480.7,0.7821]
[1747769421333,0.7819,2481.5,2480.9,21.348]
[1747769421541,4.03047035,2481.1,2481.0,17.405]
[1747769421889,4.03039061,2481.2,2481.0,17.405]
[1747769422089,4.03047035,2481.1,2481.0,17.405]
[1747769422536,0.7819,2481.5,2481.0,17.405]
[1747769422938,4.03047035,2481.1,2481.0,17.405]
[1747769423286,4.03047035,2481.1,2481.0,38.75]
[1747769424788,4.03047035,2481.1,2481.0,38.749]
[1747769424989,4.03047035,2481.1,2481.0,17.405]
[1747769424990,4.85327035,2481.1,2481.0,17.405]
[1747769425196,4.85327035,2481.1,2481.0,29.684]
[1747769425943,4.03047035,2481.1,2481.0,29.684]
[1747769426442,4.03047035,2481.1,2481.0,38.748]
[1747769428310,4.03047035,2481.1,2481.0,38.746]
[1747769430447,4.03047035,2481.1,2481.0,38.745]
[1747769431552,0.8228,2481.8,2481.1,0.7911]
[1747769431727,4.02941705,2481.8,2481.2,4.0301904]
[1747769431932,0.1,2481.9,2481.3,0.7911]
[1747769432143,4.02982522,2481.5,2481.3,0.7911]
[1747769432451,4.03030791,2481.2,2481.1,9.063]
[1747769432657,4.03030791,2481.2,2481.1,21.34]
[1747769433217,4.0300456,2481.4,2481.1,21.34]
[1747769433417,4.12918349,2481.9,2481.2,0.8299]
[1747769433650,4.02967598,2481.6,2481.2,8.8299]
[1747769433848,4.02939557,2481.8,2481.3,4.03013155]
[1747769434053,4.02933354,2481.8,2481.2,8.8299]
[1747769434252,0.1,2481.9,2481.2,8.8299]
[1747769434430,4.02966068,2481.6,2481.2,8.8299]
[1747769435153,4.02949591,2481.7,2481.4,0.5]
[1747769435334,4.02982067,2481.5,2481.4,0.5]
[1747769435534,4.02956523,2481.7,2481.4,21.838]
[1747769435854,4.02962402,2481.7,2481.4,21.838]
[1747769436158,4.02958178,2481.7,2481.4,21.838]
[1747769436453,4.02967421,2481.6,2481.4,21.838]
[1747769436955,4.02973846,2481.6,2481.4,21.838]
[1747769437251,4.02982067,2481.5,2481.4,0.5]
[1747769437452,4.02982067,2481.5,2481.4,21.81]
[1747769438656,4.02969605,2481.6,2481.4,21.81]
[1747769438950,4.02969605,2481.6,2481.5,0.7712]
[1747769439261,0.1,2481.9,2481.6,4.02958708]
[1747769439419,0.1,2481.9,2481.7,0.7712]
[1747769439755,0.1,2481.9,2481.8,12.02933354]
[1747769439918,0.1,2481.9,2481.8,20.14765954]
[1747769440119,0.1,2481.9,2481.8,16.118326]
[1747769440320,0.1,2481.9,2481.8,20.14765954]
[1747769440955,0.1,2481.9,2481.8,16.118326]
[1747769441178,0.1,2481.9,2481.8,37.427326]
[1747769441383,0.1,2481.9,2481.8,41.79302129]
[1747769442257,0.1,2481.9,2481.8,9.12936175]
[1747769442458,0.1,2481.9,2481.8,42.17244127]
[1747769442951,4.02830974,2482.5,2482.1,0.7698]
[1747769443153,4.11320413,2482.9,2482.3,8.0]
[1747769443154,0.08564865,2482.9,2482.3,8.0]
[1747769443354,0.08564865,2482.9,2482.4,12.247]
[1747769443560,4.02803512,2482.6,2482.4,12.247]
[1747769443878,4.02819738,2482.5,2482.4,12.247]
[1747769444080,4.02811662,2482.6,2482.4,12.247]
[1747769444446,0.1,2483.9,2482.6,1.3159]
[1747769444657,0.1,2483.9,2482.9,0.55]
[1747769444859,4.02608905,2483.8,2483.1,8.7659]
[1747769445080,0.1,2483.9,2483.3,8.7659]
[1747769445280,0.1,2483.9,2483.7,0.7659]
[1747769445486,0.1,2483.9,2483.8,36.631326]
[1747769446060,2.0291227,2484.8,2484.0,0.8128]
[1747769446260,4.02544078,2484.2,2484.1,17.391]
[1747769446459,4.02544078,2484.2,2484.1,38.692]
[1747769447686,4.02513793,2484.4,2484.1,38.692]
[1747769447850,4.02544078,2484.2,2484.1,38.692]
[1747769448055,4.02526028,2484.4,2484.1,46.017326]
[1747769448283,4.02544078,2484.2,2484.1,38.692]
[1747769448485,4.02544078,2484.2,2484.1,38.689]
[1747769448786,4.02544078,2484.2,2484.1,38.687]
[1747769448986,4.02380583,2485.3,2484.1,38.687]
[1747769448987,4.02478216,2484.7,2484.2,8.0]
[1747769449350,4.02454257,2484.8,2484.2,8.0]
[1747769449560,4.124312,2484.9,2484.2,8.0]
[1747769449855,4.02475337,2484.7,2484.2,8.0]
[1747769450186,0.1,2484.9,2484.3,0.85304508]
[1747769450387,0.1,2484.9,2484.3,0.8128]
[1747769450774,4.02471847,2484.7,2484.5,8.0]
[1747769450977,4.1243319,2484.9,2484.5,8.0]
[1747769451193,0.1,2484.9,2484.3,0.8128]
[1747769451397,4.02449247,2484.8,2484.5,8.0]
[1747769451691,4.02463074,2484.7,2484.6,21.291]
[1747769452959,4.02463074,2484.7,2484.6,5.2776]
[1747769453161,0.1,2484.9,2484.6,24.95721459]
[1747769453367,0.1,2484.9,2484.6,21.68444459]
[1747769453667,4.02463074,2484.7,2484.6,0.39344459]
[1747769453894,4.02505031,2484.5,2484.3,0.8128]
[1747769454095,4.02487393,2484.6,2484.4,31.934414]
[1747769454302,4.02487393,2484.6,2484.5,2.361875]
[1747769454472,4.02487393,2484.6,2484.5,29.289]
[1747769454671,4.02487393,2484.6,2484.5,31.650075]
[1747769454854,4.02487393,2484.6,2484.5,8.0]
[1747769455058,4.02465746,2484.7,2484.5,21.287]
[1747769455267,4.02479272,2484.6,2484.5,21.287]
[1747769456558,4.1243442,2484.9,2484.5,21.287]
[1747769456761,4.02479272,2484.6,2484.5,21.287]
[1747769457808,4.1243442,2484.9,2484.1,18.2205]
[1747769457809,0.1,2484.9,2484.1,17.391]
[1747769458011,4.83879272,2484.6,2484.5,12.235]
[1747769459504,4.83879272,2484.6,2484.1,17.391]
[1747769459505,4.82094078,2484.2,2484.1,17.391]
[1747769459804,4.82094078,2484.2,2484.1,29.96205032]
[1747769459805,5.70556541,2484.2,2484.1,29.96205032]
[1747769460003,5.70556541,2484.2,2484.1,17.72705032]
[1747769460404,4.82094078,2484.2,2484.1,17.72705032]
[1747769462072,4.02496146,2484.5,2484.1,17.72705032]
[1747769462073,0.8113,2484.5,2484.1,17.72705032]
[1747769462434,4.02544078,2484.2,2484.1,17.72705032]
[1747769462925,0.8113,2484.5,2484.1,17.72705032]
[1747769463123,4.02544078,2484.2,2484.1,17.72705032]
[1747769463920,4.83632479,2484.5,2484.1,17.72705032]
[1747769464225,4.02502479,2484.5,2484.1,18.54495032]
[1747769464400,4.02519016,2484.4,2484.1,18.54495032]
[1747769464603,4.02502479,2484.5,2484.1,18.54495032]
[1747769464820,4.02519642,2484.4,2484.1,18.54495032]
[1747769465321,4.02481067,2484.6,2484.1,22.57045045]
[1747769465522,4.02540496,2484.3,2484.2,21.285]
[1747769465723,0.9075,2484.9,2484.2,25.577]
[1747769465921,4.02497125,2484.5,2484.2,21.285]
[1747769466623,4.02488061,2484.6,2484.1,22.57047128]
[1747769466832,4.02488061,2484.6,2484.3,21.272]
[1747769467032,4.02478059,2484.7,2484.2,4.02534649]
[1747769467188,0.1,2484.9,2484.4,21.272]
[1747769467392,4.02473268,2484.7,2484.4,21.272]
[1747769467891,0.1,2484.9,2484.4,21.46983714]
[1747769468114,4.02455194,2484.8,2484.4,21.272]
[1747769468314,4.1243481,2484.9,2484.6,0.5]
[1747769468513,4.1243481,2484.9,2484.6,1.2555]
[1747769468823,0.1,2484.9,2484.6,1.2555]
[1747769469226,0.1,2484.9,2484.6,0.7555]
[1747769469394,0.1,2484.9,2484.7,0.04024143]
[1747769469589,0.1,2484.9,2484.6,0.7555]
[1747769469794,0.1,2484.9,2484.7,7.325326]
[1747769470229,0.1,2484.9,2484.8,8.0]
[1747769470398,0.1,2484.9,2484.8,15.325326]
[1747769470592,0.1,2484.9,2484.6,0.7555]
[1747769470817,4.02457041,2484.8,2484.7,34.7351]
[1747769471018,4.12438131,2484.9,2484.7,33.6351]
[1747769471189,4.12438425,2484.9,2484.8,4.344]
[1747769471714,4.12438425,2484.9,2484.8,2.068576]
[1747769471919,4.02446877,2484.8,2484.7,29.27]
[1747769472094,4.02446877,2484.8,2484.7,8.39670477]
[1747769472452,4.02446877,2484.8,2484.7,21.66570477]
[1747769472929,4.82679272,2484.6,2484.5,0.47966565]
[1747769473126,4.82679272,2484.6,2484.5,12.69966565]
[1747769473816,4.82679272,2484.6,2484.5,0.47966565]
[1747769474020,4.02544078,2484.2,2484.1,17.391]
[1747769474220,4.02544078,2484.2,2484.1,29.611]
[1747769475500,4.02544078,2484.2,2484.1,29.99124863]
[1747769476611,4.02394945,2485.2,2484.1,35.43157763]
[1747769476612,0.931,2484.9,2484.1,35.43157763]
[1747769476817,4.02535065,2484.3,2484.1,30.81264863]
[1747769477011,4.02516991,2484.4,2484.2,4.167041]
[1747769477336,4.02527875,2484.3,2484.2,3.751765]
[1747769477495,4.02544078,2484.2,2484.1,17.77124863]
[1747769477834,4.02544078,2484.2,2484.1,39.04124863]
[1747769478346,4.02544078,2484.2,2484.1,17.77124863]
[1747769478637,4.02544078,2484.2,2484.1,39.52091428]
[1747769479755,4.02544078,2484.2,2484.1,39.04124863]
[1747769481737,4.02544078,2484.2,2484.1,39.37729895]
[1747769482055,4.83051273,2484.2,2484.1,30.32829895]
[1747769482253,4.83051273,2484.2,2484.1,29.99224863]
[1747769482558,4.02544078,2484.2,2484.1,29.99224863]
[1747769482926,4.02544078,2484.2,2484.1,17.77124863]
[1747769483117,4.02544078,2484.2,2484.1,39.04124863]
[1747769483319,4.02544078,2484.2,2484.1,17.77124863]
[1747769483522,4.02544078,2484.2,2484.1,39.04124863]
[1747769483769,4.02473575,2484.7,2484.2,0.7817]
[1747769483926,4.02491949,2484.6,2484.2,0.7817]
[1747769484119,4.02512212,2484.4,2484.3,0.38024863]
[1747769484324,4.02512212,2484.4,2484.3,7.70557463]
[1747769484621,0.1,2484.9,2484.7,0.7817]
[1747769484864,0.1,2484.9,2484.8,21.271]
[1747769485468,0.1,2484.9,2484.8,21.65124863]
[1747769486651,0.1,2484.9,2484.8,36.97657463]
[1747769486959,0.1,2484.9,2484.8,36.67247328]
[1747769487763,0.1,2484.9,2484.8,36.67047328]
[1747769488362,0.1,2484.9,2484.8,15.40147328]
[1747769488530,0.1,2484.9,2484.8,36.67047328]
[1747769489254,0.1,2484.9,2484.8,40.69494205]
[1747769489426,4.02366311,2485.3,2484.9,8.0]
[1747769489622,4.02382569,2485.2,2485.0,17.374]
[1747769489877,4.02338954,2485.5,2485.0,17.76778567]
[1747769490068,4.023589,2485.4,2485.0,17.76778567]
[1747769490279,4.02389703,2485.2,2485.0,17.76778567]
[1747769490569,4.02398293,2485.1,2485.0,17.76778567]
[1747769490726,4.02398293,2485.1,2485.0,17.374]
[1747769490927,4.82877093,2485.1,2485.0,17.374]
[1747769491127,5.60067093,2485.1,2485.0,17.374]
[1747769491888,5.60067093,2485.1,2485.0,29.593]
[1747769492755,4.02398293,2485.1,2485.0,29.593]
[1747769493279,4.82876673,2485.1,2485.0,29.593]
[1747769493576,4.02560283,2484.1,2484.0,0.47966565]
[1747769493789,4.02560283,2484.1,2484.0,39.4557295]
[1747769493938,4.02558624,2484.2,2484.0,43.2599475]
[1747769494143,4.02544078,2484.2,2484.1,0.33605032]
[1747769494372,4.02544078,2484.2,2484.1,3.54001232]
[1747769494593,1.02981522,2485.1,2484.1,2.80535032]
[1747769494594,4.02430681,2484.9,2484.1,2.80535032]
[1747769494796,4.02430681,2484.9,2484.1,0.33605032]
[1747769494996,4.02544078,2484.2,2484.1,0.71604199]
[1747769495144,4.02544078,2484.2,2484.1,3.25104199]
[1747769495339,0.39759888,2486.1,2484.1,1.53854199]
[1747769495551,4.02511871,2484.4,2484.1,9.53854199]
[1747769495759,4.02534668,2484.3,2484.2,29.267]
[1747769495956,4.02534668,2484.3,2484.2,29.64699167]
[1747769496755,4.02534668,2484.3,2484.2,29.63899167]
[1747769497174,4.02519193,2484.4,2484.2,11.54269767]
[1747769497374,4.02519193,2484.4,2484.2,8.37999167]
[1747769497584,4.02503714,2484.5,2484.3,25.59579167]
[1747769497785,4.02503714,2484.5,2484.3,21.63899167]
[1747769498287,4.02503714,2484.5,2484.4,0.5]
[1747769500392,4.02503714,2484.5,2484.4,21.259]
[1747769500595,4.02503714,2484.5,2484.4,21.63837807]
[1747769500997,4.02503714,2484.5,2484.4,0.37937807]
[1747769501159,4.02503714,2484.5,2484.4,21.63837807]
[1747769501490,4.02503714,2484.5,2484.4,12.59037807]
[1747769501491,4.79293714,2484.5,2484.4,12.59037807]
[1747769501696,5.59793349,2484.5,2484.4,12.59037807]
[1747769502272,4.79293714,2484.5,2484.4,12.211]
[1747769503895,4.02503714,2484.5,2484.4,12.211]
[1747769504091,4.02503714,2484.5,2484.4,12.9949]
[1747769505065,4.02495471,2484.5,2484.4,21.26]
[1747769506017,4.02495471,2484.5,2484.1,0.33605032]
[1747769506018,4.02544078,2484.2,2484.1,0.33605032]
[1747769506229,0.8224,2485.0,2484.1,28.92137632]
[1747769506517,4.02509131,2484.5,2484.2,8.0]
[1747769506687,4.02513124,2484.4,2484.2,8.37943777]
[1747769506999,4.02505346,2484.5,2484.3,2.186108]
[1747769507306,0.8224,2485.0,2484.3,2.186108]
[1747769507307,4.02473944,2484.7,2484.3,8.088126]
[1747769507508,4.02491415,2484.6,2484.3,0.7628]
[1747769507806,4.02491415,2484.6,2484.4,2.5359]
[1747769508188,4.02495471,2484.5,2484.4,2.5359]
[1747769508397,4.02467388,2484.7,2484.4,7.70476377]
[1747769508597,4.02467388,2484.7,2484.5,7.325326]
[1747769508924,4.02467388,2484.7,2484.6,12.211]
[1747769509204,4.02467388,2484.7,2484.6,12.59043777]
[1747769509497,4.02467388,2484.7,2484.6,14.78728677]
[1747769510469,4.02467388,2484.7,2484.6,12.59043777]
[1747769511284,4.02467388,2484.7,2484.6,0.37943777]
[1747769511484,4.02467388,2484.7,2484.6,21.63943777]
[1747769513113,4.02467388,2484.7,2484.6,0.37943777]
[1747769513321,4.02467388,2484.7,2484.6,21.63843777]
[1747769513611,4.02433825,2484.9,2484.6,21.259]
[1747769514700,4.84664128,2485.0,2484.6,21.259]
[1747769515205,4.02432011,2484.9,2484.6,21.259]
[1747769515508,4.02459338,2484.8,2484.3,0.7628]
[1747769515708,4.02469957,2484.7,2484.4,21.258]
[1747769516610,4.02469957,2484.7,2484.3,0.7628]
[1747769516813,4.02456336,2484.8,2484.5,21.63621884]
[1747769516991,4.02456336,2484.8,2484.5,22.13621884]
[1747769517308,4.02409342,2485.1,2484.5,22.94100684]
[1747769517474,4.02423084,2485.0,2484.5,22.13621884]
[1747769517873,4.02385754,2485.2,2484.6,0.8132]
[1747769518108,4.02382102,2485.2,2484.6,1.19141884]
[1747769518281,4.02405665,2485.1,2484.6,1.19141884]
[1747769519409,4.02390878,2485.2,2484.7,0.37821884]
[1747769520083,4.02406409,2485.1,2484.8,21.258]
[1747769520279,0.7864,2485.5,2484.9,24.73856989]
[1747769520513,0.7769,2485.8,2485.1,0.7979]
[1747769520707,4.02296103,2485.8,2485.1,0.7979]
[1747769520901,4.02312312,2485.7,2485.1,4.82182597]
[1747769521107,4.02317444,2485.6,2485.1,0.7979]
[1747769521307,4.02304854,2485.7,2485.1,4.8218295]
[1747769521510,4.02318344,2485.6,2485.1,0.7979]
[1747769521710,4.02308705,2485.7,2485.1,4.82185929]
[1747769522214,4.02319087,2485.6,2485.3,0.5]
[1747769522392,4.02319087,2485.6,2485.4,12.21]
[1747769522602,4.02319087,2485.6,2485.4,12.60720452]
[1747769523020,4.02333534,2485.5,2485.4,0.39720452]
[1747769523216,4.02333534,2485.5,2485.4,21.257]
[1747769523417,4.02365911,2485.3,2485.2,0.37821884]
[1747769523622,4.02365911,2485.3,2485.2,21.63421884]
[1747769523915,4.02365911,2485.3,2485.2,0.37821884]
[1747769524119,4.02365911,2485.3,2485.2,21.63421884]
[1747769524324,4.02359299,2485.4,2485.2,21.63421884]
[1747769524904,4.02289703,2485.8,2485.2,0.37821884]
[1747769525104,4.0235971,2485.4,2485.3,21.256]
[1747769525331,4.02357058,2485.4,2485.3,21.256]
[1747769525722,4.02343595,2485.5,2485.3,21.256]
[1747769525918,4.02325819,2485.6,2485.3,21.256]
[1747769526328,4.02284978,2485.8,2485.1,0.7979]
[1747769526530,4.02346096,2485.5,2485.1,0.7979]
[1747769526718,4.89962379,2485.9,2485.2,21.255]
[1747769526719,0.1,2485.9,2485.2,21.255]
[1747769526923,0.1,2485.9,2485.4,4.02348594]
[1747769527220,0.1,2485.9,2485.7,0.8164]
[1747769527397,0.1,2485.9,2485.8,21.248]
[1747769529550,0.1,2485.9,2485.8,38.618]
[1747769530313,0.1,2485.9,2485.8,56.28017878]
[1747769531830,0.1,2485.9,2485.8,57.03487878]
[1747769532231,0.1,2485.9,2485.8,57.409815]
[1747769533669,0.1,2485.9,2485.8,32.13896522]
[1747769533965,0.1,2485.9,2485.8,31.64307622]
[1747769534164,0.1,2485.9,2485.8,52.88607622]
[1747769534518,0.1,2485.9,2485.8,52.51114]
[1747769534728,0.1,2485.9,2485.8,26.6247]
[1747769534729,4.12268796,2485.9,2485.8,26.6247]
[1747769535263,4.12268796,2485.9,2485.8,47.8677]
[1747769535481,4.12268796,2485.9,2485.8,52.573356]
[1747769535686,4.12268796,2485.9,2485.8,25.87]
[1747769535849,4.12268796,2485.9,2485.8,30.062]
[1747769536057,5.71351161,2485.9,2485.8,17.365]
[1747769536389,5.71351161,2485.9,2485.8,29.562]
[1747769537886,4.89898796,2485.9,2485.8,29.562]
[1747769539579,4.89898796,2485.9,2485.8,17.365]
[1747769539742,4.89898796,2485.9,2485.8,38.607]
[1747769540683,4.12268796,2485.9,2485.8,38.607]
[1747769541740,4.12268796,2485.9,2485.8,41.724]
[1747769541981,0.1,2485.9,2485.8,38.607]
[1747769542275,4.12268796,2485.9,2485.8,38.607]
[1747769542475,0.1,2485.9,2485.8,41.723123]
[1747769543660,0.1,2485.9,2485.8,41.694456]
[1747769543966,4.12268796,2485.9,2485.8,19.664801]
[1747769544316,4.12268796,2485.9,2485.8,38.607]
[1747769544461,5.0166962,2485.9,2485.8,38.607]
[1747769544663,5.0166962,2485.9,2485.8,38.606]
[1747769545168,4.12268796,2485.9,2485.8,17.365]
[1747769545477,4.88388796,2485.9,2485.8,17.365]
[1747769545695,4.78485911,2485.3,2485.2,9.044]
[1747769545904,4.02365911,2485.3,2485.2,21.57690158]
[1747769546071,4.02339201,2485.5,2485.2,21.57690158]
[1747769546270,4.02349722,2485.4,2485.3,0.33588806]
[1747769546497,4.02349722,2485.4,2485.3,3.65288806]
[1747769546708,4.02349722,2485.4,2485.3,21.57688806]
[1747769547208,0.7612,2485.4,2485.3,0.33588806]
[1747769547404,4.02349722,2485.4,2485.3,22.07788806]
[1747769547906,4.02349722,2485.4,2485.3,21.742]
[1747769548783,4.02349722,2485.4,2485.3,0.5]
[1747769549110,4.02349722,2485.4,2485.3,29.067326]
[1747769549315,4.02323577,2485.6,2485.3,29.067326]
[1747769549519,4.02323577,2485.6,2485.3,21.742]
[1747769549985,4.02349722,2485.4,2485.3,29.242]
[1747769550696,4.02349722,2485.4,2485.3,21.242]
[1747769550901,4.02382102,2485.2,2485.1,18.59674121]
[1747769551217,4.02377693,2485.3,2485.1,22.79754121]
[1747769551391,4.02377693,2485.3,2485.2,4.2527]
[1747769551719,0.7612,2485.8,2485.2,25.4947]
[1747769551904,4.02346784,2485.5,2485.2,21.242]
[1747769552085,4.02346784,2485.5,2485.3,3.3479]
[1747769552405,4.02346784,2485.5,2485.4,0.5]
[1747769552804,4.02346784,2485.5,2485.4,0.87541293]
[1747769553713,4.02346784,2485.5,2485.4,3.05041293]
[1747769553883,4.02346784,2485.5,2485.4,3.32710293]
[1747769554290,4.02346784,2485.5,2485.4,0.87541293]
[1747769554600,4.02346784,2485.5,2485.4,3.05041293]
[1747769555004,4.02346784,2485.5,2485.4,9.91941293]
[1747769555181,4.02346784,2485.5,2485.4,0.87541293]
[1747769555386,4.02346784,2485.5,2485.4,12.57341293]
[1747769555599,4.82813586,2485.5,2485.4,12.57341293]
[1747769556409,4.82813586,2485.5,2485.4,21.61741293]
[1747769556617,4.02346784,2485.5,2485.4,21.61741293]
[1747769557000,4.02346784,2485.5,2485.4,21.242]
[1747769557678,0.7612,2485.8,2485.4,21.242]
[1747769557876,4.02333534,2485.5,2485.4,21.242]
[1747769558994,4.02382102,2485.2,2485.1,17.365]
[1747769559494,4.02382102,2485.2,2485.1,38.599]
[1747769560612,4.02382102,2485.2,2485.1,17.365]
[1747769560977,4.02382102,2485.2,2485.1,38.599]
[1747769561709,4.02369692,2485.3,2485.1,38.599]
[1747769561915,4.02317347,2485.6,2485.1,38.599]
[1747769562214,4.02342978,2485.5,2485.2,0.8133]
[1747769562414,0.7612,2485.8,2485.2,1.3133]
[1747769562617,4.02332924,2485.6,2485.2,1.3133]
[1747769563306,4.02334667,2485.5,2485.2,1.3133]
[1747769563492,4.02362729,2485.4,2485.3,21.234]
[1747769563687,4.02362729,2485.4,2485.3,21.60981491]
[1747769563892,4.02340544,2485.5,2485.3,21.60981491]
[1747769564694,4.02349722,2485.4,2485.3,0.37581491]
[1747769564894,4.02349722,2485.4,2485.3,24.911132]
[1747769565115,4.02349722,2485.4,2485.3,23.642932]
[1747769565276,4.02365911,2485.3,2485.2,0.5]
[1747769565482,4.02365911,2485.3,2485.2,21.734]
[1747769565977,4.02358998,2485.4,2485.2,24.666914]
[1747769566312,4.02358998,2485.4,2485.2,0.5]
[1747769566512,4.78410047,2485.8,2485.3,21.234]
[1747769566816,4.02327123,2485.6,2485.3,21.234]
[1747769567312,4.02309997,2485.7,2485.3,21.234]
[1747769567511,0.1,2485.9,2485.3,21.234]
[1747769567512,4.02327504,2485.6,2485.3,21.234]
[1747769567720,4.02331436,2485.6,2485.3,21.234]
[1747769568736,4.02331436,2485.6,2485.4,0.37590264]
[1747769569431,4.02305861,2485.7,2485.5,7.302207]
[1747769569606,4.02305861,2485.7,2485.4,0.37590264]
[1747769569798,4.02317631,2485.6,2485.4,0.37590264]
[1747769569997,4.02317631,2485.6,2485.5,4.790461]
[1747769570194,4.02291746,2485.8,2485.5,4.034361]
[1747769570404,0.1,2485.9,2485.6,0.7823]
[1747769570602,0.1,2485.9,2485.8,4.02284978]
[1747769570807,0.1,2485.9,2485.8,23.53717578]
[1747769571391,0.1,2485.9,2485.8,31.53717578]
[1747769571632,0.1,2485.9,2485.8,29.232]
[1747769571988,0.1,2485.9,2485.8,32.15030864]
[1747769572428,0.1,2485.9,2485.8,32.65030864]
[1747769572624,0.1,2485.9,2485.8,30.10790264]
[1747769572865,4.12268796,2485.9,2485.8,30.10790264]
[1747769573068,4.12268796,2485.9,2485.8,22.10790264]
[1747769573430,4.12268796,2485.9,2485.8,21.732]
[1747769573633,4.12268796,2485.9,2485.8,21.232]
[1747769574482,4.02334384,2485.5,2485.3,0.47966565]
[1747769574766,4.02325523,2485.6,2485.5,8.0]
[1747769575254,4.02325523,2485.6,2485.5,29.232]
[1747769575460,4.02317347,2485.6,2485.5,36.93296872]
[1747769575867,4.02309844,2485.7,2485.5,36.93296872]
[1747769576073,4.02309844,2485.7,2485.6,5.017]
[1747769576272,4.12276117,2485.9,2485.6,5.017]
[1747769576273,0.1,2485.9,2485.6,5.017]
[1747769576433,4.12273848,2485.9,2485.5,33.6308938]
[1747769577062,4.12273848,2485.9,2485.6,0.37564272]
[1747769577366,4.02286638,2485.8,2485.6,8.37564272]
[1747769577567,4.02286638,2485.8,2485.7,5.51552]
[1747769578165,0.1,2485.9,2485.7,6.28092]
[1747769578342,4.12279164,2485.9,2485.8,3.721417]
[1747769578747,4.12279164,2485.9,2485.8,4.09705972]
[1747769579376,4.24,2487.2,2485.8,4.09705972]
[1747769579377,0.01125681,2487.3,2485.9,1.26374597]
[1747769579527,0.8054,2487.2,2486.1,8.0]
[1747769579727,4.02163322,2486.6,2486.3,8.0]
[1747769579927,0.8054,2486.7,2486.3,8.33575296]
[1747769580234,4.02168269,2486.6,2486.3,8.33575296]
[1747769580446,4.82685118,2486.7,2486.3,8.33575296]
[1747769580638,0.8054,2487.0,2486.4,7.325326]
[1747769580842,4.02138076,2486.8,2486.3,12.55704023]
[1747769581470,4.02138076,2486.8,2486.4,4.02187197]
[1747769581671,4.02130055,2486.8,2486.4,0.37564272]
[1747769582382,4.02141351,2486.7,2486.4,0.76952037]
[1747769582544,0.1,2486.9,2486.6,8.0]
[1747769582747,4.12113954,2486.9,2486.7,25.304429]
[1747769582957,4.0212321,2486.8,2486.7,29.60564272]
[1747769583295,4.12114006,2486.9,2486.7,33.74479372]
[1747769583452,4.0212321,2486.8,2486.7,29.60564272]
[1747769583651,4.0212321,2486.8,2486.7,29.60264272]
[1747769583901,0.1,2486.9,2486.7,35.32412972]
[1747769584054,0.1,2486.9,2486.8,5.121238]
[1747769584252,0.1,2486.9,2486.8,12.602897]
[1747769584452,0.1,2486.9,2486.8,13.357097]
[1747769584758,0.1,2486.9,2486.8,34.584097]
[1747769585650,0.1,2486.9,2486.8,34.95755153]
[1747769586496,0.1,2486.9,2486.8,34.51751953]
[1747769586653,0.1,2486.9,2486.8,34.144065]
[1747769587480,0.1,2486.9,2486.8,33.723265]
[1747769587799,0.1,2486.9,2486.8,12.498265]
[1747769588096,4.02139381,2486.7,2486.6,0.33571246]
[1747769588591,4.83799381,2486.7,2486.6,21.55071246]
[1747769588792,4.02187902,2486.4,2486.3,0.47966565]
[1747769588983,4.02187902,2486.4,2486.3,21.69466565]
[1747769589493,4.82624201,2486.4,2486.3,21.69466565]
[1747769589697,4.82624201,2486.4,2486.0,17.365]
[1747769589698,4.02236434,2486.1,2486.0,17.365]
[1747769589900,3.97236434,2486.1,2486.0,38.58]
[1747769590711,0.8304,2486.8,2486.0,47.12612231]
[1747769590891,0.8304,2486.8,2486.0,39.80079631]
[1747769590892,4.02203195,2486.4,2486.0,39.80079631]
[1747769591205,4.02208047,2486.3,2486.0,39.80079631]
[1747769591361,4.02208047,2486.3,2486.1,7.325326]
[1747769591560,4.02208047,2486.3,2486.2,21.215]
[1747769592192,4.02231423,2486.2,2486.0,18.58579631]
[1747769592411,4.02236434,2486.1,2486.0,17.77599631]
[1747769592561,4.02236434,2486.1,2486.0,38.99199631]
[1747769592912,0.8193,2487.1,2486.6,0.8219]
[1747769593114,4.84012113,2487.1,2486.7,12.175]
[1747769593287,0.8193,2487.1,2486.8,9.041]
[1747769593495,4.1210704,2486.9,2486.8,11.4526]
[1747769593694,0.1,2486.9,2486.8,11.4526]
[1747769594015,4.1210704,2486.9,2486.8,11.4526]
[1747769594215,0.1,2486.9,2486.8,25.553]
[1747769594714,0.1,2486.9,2486.8,33.553]
[1747769596207,0.1,2486.9,2486.8,33.9265336]
[1747769596920,0.1,2486.9,2486.8,32.1214836]
[1747769597709,0.1,2486.9,2486.8,31.74795]
[1747769597940,0.1,2486.9,2486.8,29.215]
[1747769598098,0.1,2486.9,2486.8,31.69125]
[1747769598814,0.1,2486.9,2486.8,10.47625]
[1747769599013,0.1,2486.9,2486.8,31.68925]
[1747769600980,0.1,2486.9,2486.8,32.18925]
[1747769601375,0.1,2486.9,2486.8,10.97625]